fUST/lending_fUST_20240622
["ID","MTS","AMOUNT","RATE_DAILY","PERIOD"]
[330133740,1719031839834,-500.0,0.00019178,2]
[330133741,1719031839843,-500.0,0.00019178,2]
[330133742,1719031839853,-500.0,0.00019178,2]
[330133743,1719031839863,-500.0,0.00019178,2]
[330133744,1719031839872,-500.0,0.00019178,2]
[330133745,1719031839882,-500.0,0.00019178,2]
[330133746,1719031839892,-500.0,0.00019178,2]
[330133747,1719031839901,-500.0,0.00019178,2]
[330133748,1719031839911,-451.05147793,0.00019178,2]
[330133749,1719031839920,-500.0,0.00019178,2]
[330133750,1719031839930,-500.0,0.00019178,2]
[330133751,1719031839940,-500.0,0.00019178,2]
[330133752,1719031839950,-441.07840612,0.00019178,2]
[330133753,1719031839960,-500.0,0.00019178,2]
[330133754,1719031839969,-500.0,0.00019178,2]
[330133755,1719031839979,-500.0,0.00019178,2]
[330133756,1719031839989,-502.98055054,0.00019178,2]
[330133757,1719031840001,-408.86158707,0.00019178,2]
[330133758,1719031840011,-500.0,0.00019178,2]
[330133759,1719031840020,-529.14320651,0.00019178,2]
[330133760,1719031840029,-500.0,0.00019178,2]
[330133761,1719031840039,-225.0,0.00019178,2]
[330133762,1719031840048,-500.0,0.00019178,2]
[330133763,1719031840057,-500.92037592,0.00019178,2]
[330133764,1719031840067,-502.36350839,0.00019178,2]
[330133765,1719031840076,-500.0,0.00019178,2]
[330133766,1719031840086,-500.0,0.00019178,2]
[330133767,1719031840096,-431.84116032,0.00019178,2]
[330133769,1719031840105,-159.03956,0.00019178,2]
[330133770,1719031840115,-490.14773198,0.00019724,2]
[330133772,1719031840124,-500.0,0.00019725,2]
[330133773,1719031840134,-309.57179829,0.00019737,2]
[330133774,1719031840143,-181.55716895,0.0002,2]
[330133775,1719031840152,-4837.64567885,0.0002,2]
[330133776,1719031840162,-1415.41276627,0.0002,2]
[330133777,1719031840171,-292.90827578,0.0002,2]
[330133778,1719031840181,-810.89034508,0.0002,2]
[330133779,1719031840190,-167.37446479,0.00020348,2]
[330133780,1719031840199,-948.2946193,0.00020349,2]
[330133781,1719031840209,-309.57179829,0.00020397,2]
[330133782,1719031840218,-154.910297,0.0002082,2]
[330133783,1719031840228,-292.92115938,0.0002082,2]
[330133784,1719031840237,-292.92115938,0.0002082,2]
[330133785,1719031840249,-500.0,0.00020821,2]
[330133786,1719031840257,-373.5640515,0.00020858,2]
[330133787,1719031840266,-244.78941876,0.00020859,2]
[330133788,1719031840275,-154.76012181,0.00020859,2]
[330133789,1719031840284,-154.77557542,0.00020859,2]
[330133790,1719031840294,-173.47357852,0.0002086,2]
[330133791,1719031840304,-525.29379384,0.00020861,2]
[330133792,1719031840313,-805.0,0.00020917,2]
[330133794,1719031840323,-281.0,0.00020917,2]
[330133795,1719031840332,-153.243,0.0002104,2]
[330133796,1719031840342,-1752.0,0.0002104,2]
[330133797,1719031840352,-293.90529376,0.00021056,2]
[330133798,1719031840361,-309.57179829,0.00021057,2]
[330133799,1719031840371,-175.93554965,0.00021095,2]
[330133800,1719031840380,-151.0,0.00021095,2]
[330133801,1719031840389,-750.0,0.00021096,2]
[330133802,1719031840399,-157.852868,0.00021096,2]
[330133803,1719031840408,-151.0,0.00021464,2]
[330133804,1719031840417,-151.591465,0.00021464,2]
[330133805,1719031840427,-237.704909,0.00021464,2]
[330133806,1719031840436,-151.0,0.00021464,2]
[330133807,1719031840445,-805.0,0.00021506,2]
[330133808,1719031840454,-281.0,0.00021506,2]
[330133809,1719031840463,-154.95929032,0.00021716,2]
[330133810,1719031840472,-271.70095132,0.00021716,2]
[330133811,1719031840481,-2000.0,0.00021717,2]
[330133812,1719031840491,-309.57179829,0.00021717,2]
[330133813,1719031840501,-179.62501621,0.00021816,2]
[330133814,1719031840510,-724.99217454,0.00021816,2]
[330133815,1719031840522,-155.0278566,0.00021816,2]
[330133816,1719031840531,-155.22885084,0.00021816,2]
[330133817,1719031840540,-305.32953539,0.00021816,2]
[330133818,1719031840549,-154.79876161,0.00021816,2]
[330133819,1719031840559,-28669.68429312,0.00021817,3]
[330133821,1719031840568,-151.0,0.00021817,2]
[330133823,1719031840577,-170.639162,0.00021817,2]
[330133824,1719031840587,-151.0,0.00021817,2]
[330133825,1719031840596,-230.0,0.00021817,2]
[330133826,1719031840606,-230.0,0.00021817,2]
[330133827,1719031840615,-151.0,0.00021817,2]
[330133828,1719031840625,-151.0,0.00021817,2]
[330133830,1719031840635,-151.0,0.00021817,2]
[330133831,1719031840644,-151.0,0.00021817,2]
[330133834,1719031840654,-152.019473,0.00021817,2]
[330133835,1719031840663,-209.385307,0.00021817,2]
[330133837,1719031840674,-209.385307,0.00021817,2]
[330133838,1719031840687,-151.0,0.00021817,2]
[330133839,1719031840696,-151.0,0.00021817,2]
[330133840,1719031840706,-286.114302,0.00021817,2]
[330133841,1719031840716,-286.114302,0.00021817,2]
[330133842,1719031840726,-3126.01610644,0.00021898,2]
[330133843,1719031840735,-457.3330099,0.00021899,2]
[330133844,1719031840749,-457.3330099,0.00021899,2]
[330133845,1719031840761,-252.0,0.000219,2]
[330133846,1719031840771,-10545.72017241,0.00021914,2]
[330133847,1719031840780,-230.0,0.00021914,2]
[330133848,1719031840790,-230.0,0.00021914,2]
[330133849,1719031840799,-151.0,0.00021916,2]
[330133850,1719031840808,-260.5916005,0.00021917,2]
[330133851,1719031840817,-45184.93711714,0.00021917,2]
[330133852,1719031840827,-500.0,0.00021917,2]
[330133853,1719031840836,-500.0,0.00021917,2]
[330133854,1719031840845,-500.0,0.00021917,2]
[330133855,1719031840855,-552.19161741,0.00021917,2]
[330133856,1719031840865,-503.228057,0.00021917,2]
[330133857,1719031840874,-510.40676795,0.00021917,2]
[330133858,1719031840883,-500.0,0.00021917,2]
[330133859,1719031840892,-500.0,0.00021917,2]
[330133860,1719031840901,-500.0,0.00021917,2]
[330133861,1719031840911,-500.0,0.00021917,2]
[330133862,1719031840920,-542.36635605,0.00021917,2]
[330133863,1719031840929,-500.0,0.00021917,2]
[330133864,1719031840939,-500.0,0.00021917,2]
[330133865,1719031840948,-317.48037558,0.00021917,2]
[330133866,1719031840958,-500.0,0.00021917,2]
[330133867,1719031840967,-500.0,0.00021917,2]
[330133868,1719031840976,-501.89610664,0.00021917,2]
[330133869,1719031840986,-500.0,0.00021917,2]
[330133870,1719031840996,-500.0,0.00021917,2]
[330133871,1719031841006,-500.0,0.00021917,2]
[330133872,1719031841015,-504.29876438,0.00021917,2]
[330133873,1719031841024,-500.0,0.00021917,2]
[330133874,1719031841034,-500.0,0.00021917,2]
[330133875,1719031841043,-500.0,0.00021917,2]
[330133876,1719031841052,-500.0,0.00021917,2]
[330133877,1719031841061,-500.0,0.00021917,2]
[330133878,1719031841070,-500.0,0.00021917,2]
[330133879,1719031841079,-500.0,0.00021917,2]
[330133880,1719031841089,-500.0,0.00021917,2]
[330133881,1719031841098,-504.4929517,0.00021917,2]
[330133882,1719031841108,-502.24641528,0.00021917,2]
[330133883,1719031841117,-500.0,0.00021917,2]
[330133884,1719031841127,-500.0,0.00021917,2]
[330133885,1719031841136,-503.49830285,0.00021917,2]
[330133886,1719031841145,-500.0,0.00021917,2]
[330133887,1719031841155,-500.0,0.00021917,2]
[330133888,1719031841164,-500.0,0.00021917,2]
[330133889,1719031841174,-500.0,0.00021917,2]
[330133890,1719031841183,-500.0,0.00021917,2]
[330133891,1719031841192,-500.0,0.00021917,2]
[330133892,1719031841203,-500.0,0.00021917,2]
[330133893,1719031841213,-500.92448999,0.00021917,2]
[330133894,1719031841223,-500.0,0.00021917,2]
[330133895,1719031841232,-500.0,0.00021917,2]
[330133896,1719031841241,-500.0,0.00021917,2]
[330133897,1719031841251,-500.0,0.00021917,2]
[330133898,1719031841260,-500.0,0.00021917,2]
[330133899,1719031841269,-500.0,0.00021917,2]
[330133900,1719031841278,-500.0,0.00021917,2]
[330133901,1719031841287,-500.0,0.00021917,2]
[330133902,1719031841296,-500.0,0.00021917,2]
[330133903,1719031841305,-500.0,0.00021917,2]
[330133904,1719031841315,-500.0,0.00021917,2]
[330133905,1719031841324,-500.0,0.00021917,2]
[330133906,1719031841333,-500.0,0.00021917,2]
[330133907,1719031841343,-339.5850266,0.00021917,2]
[330133908,1719031841352,-500.0,0.00021917,2]
[330133909,1719031841361,-500.0,0.00021917,2]
[330133910,1719031841370,-500.0,0.00021917,2]
[330133911,1719031841379,-500.0,0.00021917,2]
[330133912,1719031841388,-500.0,0.00021917,2]
[330133913,1719031841397,-500.0,0.00021917,2]
[330133914,1719031841406,-504.20821446,0.00021917,2]
[330133915,1719031841415,-502.88607659,0.00021917,2]
[330133916,1719031841426,-500.0,0.00021917,2]
[330133917,1719031841436,-502.83232336,0.00021917,2]
[330133918,1719031841445,-500.0,0.00021917,2]
[330133919,1719031841455,-543.89292685,0.00021917,2]
[330133920,1719031841465,-498.36939238,0.00021917,2]
[330133921,1719031841474,-501.88325748,0.00021917,2]
[330133922,1719031841483,-420.96565614,0.00021917,2]
[330133923,1719031841493,-501.24368615,0.00021917,2]
[330133924,1719031841503,-500.0,0.00021917,2]
[330133926,1719031841510,-500.0,0.00021917,2]
[330133927,1719031841518,-510.01499452,0.00021917,2]
[330133928,1719031841526,-500.0,0.00021917,2]
[330133929,1719031841534,-500.0,0.00021917,2]
[330133930,1719031841542,-500.0,0.00021917,2]
[330133931,1719031841551,-581.17,0.00021917,2]
[330133932,1719031841561,-500.0,0.00021917,2]
[330133933,1719031841570,-250.0,0.00021917,2]
[330133934,1719031841579,-500.0,0.00021917,2]
[330133935,1719031841589,-500.0,0.00021917,2]
[330133936,1719031841600,-503.60784591,0.00021917,2]
[330133937,1719031841608,-502.77376036,0.00021917,2]
[330133938,1719031841618,-507.94863161,0.00021917,2]
[330133939,1719031841627,-500.0,0.00021917,2]
[330133940,1719031841637,-500.0,0.00021917,2]
[330133947,1719031841737,-500.0,0.00021917,2]
[330133949,1719031841760,-512.82564755,0.00021917,2]
[330133951,1719031841773,-1259.84,0.00021917,2]
[330133953,1719031841783,-500.0,0.00021917,2]
[330133955,1719031841794,-500.0,0.00021917,2]
[330133956,1719031841804,-500.0,0.00021917,2]
[330133957,1719031841814,-500.0,0.00021917,2]
[330133958,1719031841823,-500.0,0.00021917,2]
[330133959,1719031841832,-500.0,0.00021917,2]
[330133960,1719031841842,-500.0,0.00021917,2]
[330133961,1719031841852,-500.0,0.00021917,2]
[330133962,1719031841862,-500.0,0.00021917,2]
[330133963,1719031841871,-502.93396029,0.00021917,2]
[330133964,1719031841880,-503.17884176,0.00021917,2]
[330133965,1719031841890,-500.0,0.00021917,2]
[330133966,1719031841900,-502.47262781,0.00021917,2]
[330133967,1719031841910,-500.0,0.00021917,2]
[330133968,1719031841921,-500.0,0.00021917,2]
[330133969,1719031841931,-1526.21,0.00021917,2]
[330133970,1719031841940,-500.0,0.00021917,2]
[330133971,1719031841949,-500.0,0.00021917,2]
[330133972,1719031841959,-505.54922455,0.00021917,2]
[330133973,1719031841967,-501.51875684,0.00021917,2]
[330133974,1719031841977,-500.0,0.00021917,2]
[330133975,1719031841986,-500.0,0.00021917,2]
[330133976,1719031841995,-407.30877875,0.00021917,2]
[330133977,1719031842004,-500.0,0.00021917,2]
[330133978,1719031842013,-505.64449516,0.00021917,2]
[330133979,1719031842022,-504.80759629,0.00021917,2]
[330133980,1719031842033,-500.0,0.00021917,2]
[330133981,1719031842042,-512.3093614,0.00021917,2]
[330133982,1719031842051,-500.0,0.00021917,2]
[330133983,1719031842061,-500.0,0.00021917,2]
[330133984,1719031842070,-505.20236898,0.00021917,2]
[330133985,1719031842079,-500.0,0.00021917,2]
[330133986,1719031842089,-500.0,0.00021917,2]
[330133987,1719031842098,-548.22,0.00021917,2]
[330133988,1719031842107,-500.0,0.00021917,2]
[330133989,1719031842116,-500.0,0.00021917,2]
[330133990,1719031842125,-500.0,0.00021917,2]
[330133991,1719031842134,-455.17938042,0.00021917,2]
[330133992,1719031842143,-500.0,0.00021917,2]
[330133993,1719031842152,-500.0,0.00021917,2]
[330133994,1719031842162,-500.0,0.00021917,2]
[330133995,1719031842171,-500.0,0.00021917,2]
[330133996,1719031842180,-500.0,0.00021917,2]
[330133997,1719031842189,-500.0,0.00021917,2]
[330133998,1719031842198,-500.0,0.00021917,2]
[330133999,1719031842207,-500.0,0.00021917,2]
[330134000,1719031842216,-500.0,0.00021917,2]
[330134001,1719031842225,-500.0,0.00021917,2]
[330134002,1719031842234,-500.0,0.00021917,2]
[330134003,1719031842244,-500.0,0.00021917,2]
[330134004,1719031842253,-500.0,0.00021917,2]
[330134005,1719031842263,-500.0,0.00021917,2]
[330134006,1719031842272,-500.0,0.00021917,2]
[330134007,1719031842282,-500.0,0.00021917,2]
[330134008,1719031842291,-500.0,0.00021917,2]
[330134009,1719031842301,-201.8115679,0.00021917,2]
[330134010,1719031842311,-500.0,0.00021917,2]
[330134011,1719031842320,-500.0,0.00021917,2]
[330134012,1719031842331,-472.04072072,0.00021917,2]
[330134013,1719031842340,-500.0,0.00021917,2]
[330134014,1719031842350,-501.26412973,0.00021917,2]
[330134015,1719031842360,-1904.19,0.00021917,2]
[330134016,1719031842371,-501.58240264,0.00021917,2]
[330134017,1719031842380,-500.0,0.00021917,2]
[330134018,1719031842391,-500.0,0.00021917,2]
[330134019,1719031842401,-500.0,0.00021917,2]
[330134020,1719031842410,-500.0,0.00021917,2]
[330134021,1719031842420,-500.0,0.00021917,2]
[330134022,1719031842430,-593.63,0.00021917,2]
[330134023,1719031842440,-536.64,0.00021917,2]
[330134024,1719031842450,-501.51826016,0.00021917,2]
[330134025,1719031842459,-569.52,0.00021917,2]
[330134026,1719031842469,-500.0,0.00021917,2]
[330134027,1719031842478,-508.02343486,0.00021917,2]
[330134028,1719031842488,-502.42619167,0.00021917,2]
[330134029,1719031842498,-503.22199077,0.00021917,2]
[330134030,1719031842508,-687.07,0.00021917,2]
[330134031,1719031842517,-500.0,0.00021917,2]
[330134032,1719031842527,-500.0,0.00021917,2]
[330134033,1719031842536,-500.0,0.00021917,2]
[330134034,1719031842547,-521.50286519,0.00021917,2]
[330134035,1719031842556,-500.0,0.00021917,2]
[330134036,1719031842566,-522.07688274,0.00021917,2]
[330134037,1719031842576,-504.59361706,0.00021917,2]
[330134038,1719031842585,-500.0,0.00021917,2]
[330134039,1719031842595,-710.06,0.00021917,2]
[330134040,1719031842604,-498.47665601,0.00021917,2]
[330134041,1719031842614,-501.60341212,0.00021917,2]
[330134042,1719031842624,-504.05908846,0.00021917,2]
[330134043,1719031842634,-500.0,0.00021917,2]
[330134044,1719031842643,-796.04,0.00021917,2]
[330134045,1719031842652,-1427.71,0.00021917,2]
[330134046,1719031842661,-502.53659017,0.00021917,2]
[330134047,1719031842670,-502.48052448,0.00021917,2]
[330134048,1719031842687,-500.0,0.00021917,2]
[330134049,1719031842696,-500.0,0.00021917,2]
[330134050,1719031842705,-918.67,0.00021917,2]
[330134051,1719031842714,-508.94797736,0.00021917,2]
[330134052,1719031842724,-442.62425015,0.00021917,2]
[330134053,1719031842734,-505.52,0.00021917,2]
[330134054,1719031842746,-500.0,0.00021917,2]
[330134055,1719031842756,-500.0,0.00021917,2]
[330134056,1719031842765,-500.0,0.00021917,2]
[330134057,1719031842776,-500.0,0.00021917,2]
[330134058,1719031842787,-500.0,0.00021917,2]
[330134059,1719031842796,-517.95624434,0.00021917,2]
[330134060,1719031842805,-500.0,0.00021917,2]
[330134061,1719031842814,-500.0,0.00021917,2]
[330134062,1719031842823,-500.0,0.00021917,2]
[330134063,1719031842833,-500.0,0.00021917,2]
[330134064,1719031842842,-500.0,0.00021917,2]
[330134065,1719031842851,-500.05856676,0.00021917,2]
[330134066,1719031842860,-692.42,0.00021917,2]
[330134067,1719031842870,-443.12981929,0.00021917,2]
[330134068,1719031842879,-500.0,0.00021917,2]
[330134069,1719031842888,-550.9030432,0.00021917,2]
[330134070,1719031842898,-500.97146155,0.00021917,2]
[330134071,1719031842907,-161.31458561,0.00021917,2]
[330134072,1719031842916,-500.0,0.00021917,2]
[330134073,1719031842926,-968.71,0.00021917,2]
[330134074,1719031842935,-598.15,0.00021917,2]
[330134075,1719031842944,-500.0,0.00021917,2]
[330134076,1719031842953,-511.12575361,0.00021917,2]
[330134077,1719031842963,-500.0,0.00021917,2]
[330134078,1719031842972,-500.0,0.00021917,2]
[330134079,1719031842981,-1434.81,0.00021917,2]
[330134080,1719031842991,-500.0,0.00021917,2]
[330134081,1719031843001,-500.0,0.00021917,2]
[330134082,1719031843010,-500.0,0.00021917,2]
[330134083,1719031843021,-500.0,0.00021917,2]
[330134084,1719031843030,-500.0,0.00021917,2]
[330134085,1719031843040,-501.13967173,0.00021917,2]
[330134086,1719031843049,-500.0,0.00021917,2]
[330134087,1719031843059,-638.74,0.00021917,2]
[330134088,1719031843068,-531.47245541,0.00021917,2]
[330134089,1719031843081,-500.0,0.00021917,2]
[330134090,1719031843090,-500.0,0.00021917,2]
[330134091,1719031843099,-501.27219413,0.00021917,2]
[330134092,1719031843108,-500.0,0.00021917,2]
[330134093,1719031843117,-1589.84,0.00021917,2]
[330134094,1719031843126,-500.0,0.00021917,2]
[330134095,1719031843136,-500.0,0.00021917,2]
[330134096,1719031843145,-500.0,0.00021917,2]
[330134098,1719031843155,-504.92050198,0.00021917,2]
[330134099,1719031843164,-507.33032626,0.00021917,2]
[330134100,1719031843173,-505.14737117,0.00021917,2]
[330134101,1719031843183,-500.0,0.00021917,2]
[330134102,1719031843192,-1231.51,0.00021917,2]
[330134103,1719031843202,-201.50703042,0.00021917,2]
[330134104,1719031843211,-500.0,0.00021917,2]
[330134105,1719031843221,-500.0,0.00021917,2]
[330134106,1719031843231,-500.0,0.00021917,2]
[330134107,1719031843240,-500.0,0.00021917,2]
[330134108,1719031843251,-500.00953168,0.00021917,2]
[330134109,1719031843260,-500.0,0.00021917,2]
[330134111,1719031843270,-500.0,0.00021917,2]
[330134112,1719031843279,-500.0,0.00021917,2]
[330134114,1719031843289,-2848.48,0.00021917,2]
[330134117,1719031843298,-500.0,0.00021917,2]
[330134120,1719031843307,-500.0,0.00021917,2]
[330134122,1719031843317,-500.0,0.00021917,2]
[330134124,1719031843326,-500.0,0.00021917,2]
[330134126,1719031843335,-500.0,0.00021917,2]
[330134128,1719031843345,-508.1724559,0.00021917,2]
[330134129,1719031843354,-925.58,0.00021917,2]
[330134130,1719031843364,-500.0,0.00021917,2]
[330134131,1719031843374,-500.0,0.00021917,2]
[330134132,1719031843383,-1710.53,0.00021917,2]
[330134133,1719031843394,-500.0,0.00021917,2]
[330134134,1719031843404,-512.08848735,0.00021917,2]
[330134135,1719031843414,-506.62150984,0.00021917,2]
[330134136,1719031843424,-500.0,0.00021917,2]
[330134137,1719031843434,-594.8422659,0.00021917,2]
[330134138,1719031843468,-1795.5677341,0.00021917,2]
[330134139,1719031843478,-645.04,0.00021917,2]
[330134140,1719031843488,-570.02,0.00021917,2]
[330134141,1719031843500,-500.0,0.00021917,2]
[330134143,1719031843509,-1016.09,0.00021917,2]
[330134144,1719031843518,-505.47399611,0.00021917,2]
[330134145,1719031843533,-500.0,0.00021917,2]
[330134146,1719031843542,-562.66,0.00021917,2]
[330134147,1719031843552,-506.8535485,0.00021917,2]
[330134148,1719031843562,-798.5,0.00021917,2]
[330134149,1719031843572,-500.0,0.00021917,2]
[330134150,1719031843581,-1056.11,0.00021917,2]
[330134151,1719031843591,-279.466371,0.00021917,2]
[330134152,1719031843601,-510.27818282,0.00021917,2]
[330134153,1719031843610,-657.98,0.00021917,2]
[330134155,1719031843620,-500.0,0.00021917,2]
[330134156,1719031843630,-500.0,0.00021917,2]
[330134157,1719031843639,-500.0,0.00021917,2]
[330134158,1719031843650,-500.0,0.00021917,2]
[330134159,1719031843660,-500.0,0.00021917,2]
[330134161,1719031843767,-1139.71,0.00021917,2]
[330134162,1719031843777,-772.64,0.00021917,2]
[330134163,1719031843786,-1286.6,0.00021917,2]
[330134164,1719031843795,-500.0,0.00021917,2]
[330134165,1719031843805,-500.0,0.00021917,2]
[330134166,1719031843814,-503.56730211,0.00021917,2]
[330134167,1719031843823,-524.33979702,0.00021917,2]
[330134168,1719031843832,-504.20165479,0.00021917,2]
[330134169,1719031843841,-501.34565358,0.00021917,2]
[330134170,1719031843850,-230.0,0.00021917,2]
[330134171,1719031843860,-230.0,0.00021917,2]
[330134172,1719031843869,-230.0,0.00021917,2]
[330134173,1719031843878,-500.0,0.00021917,2]
[330134174,1719031843887,-230.0,0.00021917,2]
[330134175,1719031843896,-230.0,0.00021917,2]
[330134176,1719031843906,-230.0,0.00021917,2]
[330134177,1719031843915,-230.0,0.00021917,2]
[330134178,1719031843924,-230.0,0.00021917,2]
[330134179,1719031843934,-230.0,0.00021917,2]
[330134180,1719031843943,-230.0,0.00021917,2]
[330134181,1719031843952,-230.0,0.00021917,2]
[330134182,1719031843961,-230.0,0.00021917,2]
[330134183,1719031843970,-230.0,0.00021917,2]
[330134184,1719031843980,-230.0,0.00021917,2]
[330134185,1719031843989,-230.0,0.00021917,2]
[330134186,1719031844005,-500.0,0.00021917,2]
[330134187,1719031844015,-230.0,0.00021917,2]
[330134188,1719031844024,-423.21469522,0.00021917,2]
[330134189,1719031844034,-500.0,0.00021917,2]
[330134190,1719031844043,-500.0,0.00021917,2]
[330134191,1719031844052,-1244.87,0.00021917,2]
[330134192,1719031844062,-500.0,0.00021917,2]
[330134193,1719031844071,-388.44880843,0.00021917,2]
[330134194,1719031844080,-500.0,0.00021917,2]
[330134195,1719031844089,-500.0,0.00021917,2]
[330134196,1719031844099,-502.89117524,0.00021917,2]
[330134197,1719031844108,-500.0,0.00021917,2]
[330134198,1719031844117,-502.79195075,0.00021917,2]
[330134199,1719031844126,-500.0,0.00021917,2]
[330134200,1719031844135,-1531.63,0.00021917,2]
[330134201,1719031844144,-2234.89,0.00021917,2]
[330134202,1719031844154,-977.83,0.00021917,2]
[330134203,1719031844163,-506.75995068,0.00021917,2]
[330134204,1719031844172,-546.24,0.00021917,2]
[330134205,1719031844181,-500.0,0.00021917,2]
[330134206,1719031844190,-500.0,0.00021917,2]
[330134207,1719031844199,-1235.5,0.00021917,2]
[330134208,1719031844210,-500.0,0.00021917,2]
[330134209,1719031844220,-500.0,0.00021917,2]
[330134210,1719031844230,-674.38,0.00021917,2]
[330134211,1719031844239,-500.0,0.00021917,2]
[330134212,1719031844251,-1636.24,0.00021917,2]
[330134213,1719031844260,-500.0,0.00021917,2]
[330134214,1719031844269,-500.0,0.00021917,2]
[330134215,1719031844278,-151.0,0.00021917,2]
[330134216,1719031844286,-159.83671,0.00021917,2]
[330134217,1719031844295,-767.36,0.00021917,2]
[330134218,1719031844305,-1494.06,0.00021917,2]
[330134219,1719031844316,-500.0,0.00021917,2]
[330134220,1719031844325,-500.0,0.00021917,2]
[330134221,1719031844334,-500.0,0.00021917,2]
[330134222,1719031844344,-728.17,0.00021917,2]
[330134223,1719031844354,-885.23,0.00021917,2]
[330134224,1719031844364,-151.0,0.00021917,2]
[330134225,1719031844373,-151.0,0.00021917,2]
[330134226,1719031844384,-151.0,0.00021917,2]
[330134227,1719031844394,-151.0,0.00021917,2]
[330134228,1719031844402,-151.0,0.00021917,2]
[330134229,1719031844412,-500.0,0.00021917,2]
[330134230,1719031844421,-151.0,0.00021917,2]
[330134231,1719031844430,-151.0,0.00021917,2]
[330134232,1719031844439,-151.0,0.00021917,2]
[330134233,1719031844448,-500.0,0.00021917,2]
[330134234,1719031844457,-500.0,0.00021917,2]
[330134235,1719031844466,-500.0,0.00021917,2]
[330134236,1719031844476,-500.0,0.00021917,2]
[330134237,1719031844484,-500.0,0.00021917,2]
[330134238,1719031844495,-453.64456255,0.00021917,2]
[330134239,1719031844504,-500.0,0.00021917,2]
[330134240,1719031844513,-500.0,0.00021917,2]
[330134241,1719031844522,-617.41,0.00021917,2]
[330134242,1719031844531,-500.0,0.00021917,2]
[330134243,1719031844540,-500.0,0.00021917,2]
[330134244,1719031844549,-330.59990702,0.00021917,2]
[330134245,1719031844558,-500.0,0.00021917,2]
[330134246,1719031844567,-500.0,0.00021917,2]
[330134247,1719031844577,-500.0,0.00021917,2]
[330134248,1719031844586,-500.0,0.00021917,2]
[330134249,1719031844596,-1225.66,0.00021917,2]
[330134250,1719031844606,-151.0,0.00021917,2]
[330134251,1719031844618,-151.0,0.00021917,2]
[330134252,1719031844635,-151.0,0.00021917,2]
[330134253,1719031844652,-151.0,0.00021917,2]
[330134254,1719031844665,-151.0,0.00021917,2]
[330134255,1719031844686,-151.0,0.00021917,2]
[330134256,1719031844701,-251.733455,0.00021917,2]
[330134257,1719031844716,-500.0,0.00021917,2]
[330134258,1719031844734,-500.0,0.00021917,2]
[330134259,1719031844753,-500.0,0.00021917,2]
[330134260,1719031844768,-509.85107706,0.00021917,2]
[330134261,1719031844783,-559.77,0.00021917,2]
[330134262,1719031844801,-675.78,0.00021917,2]
[330134263,1719031844815,-504.44949631,0.00021917,2]
[330134264,1719031844829,-500.0,0.00021917,2]
[330134265,1719031844843,-500.0,0.00021917,2]
[330134266,1719031844857,-500.0,0.00021917,2]
[330134267,1719031844872,-500.0,0.00021917,2]
[330134268,1719031844887,-509.44632784,0.00021917,2]
[330134269,1719031844905,-502.02554846,0.00021917,2]
[330134270,1719031844918,-1135.45,0.00021917,2]
[330134271,1719031844929,-880.95845776,0.00021917,2]
[330134272,1719031845267,-1929.68520268,0.00021917,2]
[330134273,1719031845796,-3922.60095173,0.00018707,2]